[Event "FIDE World Rapid-ch Open 2018"]
[White "khayat, Abdullah F"]
[Black "Dubrovin, Robert"]
[Site "St. Petersburg"]
[Round "14.99"]
[Annotator "NA"]
[Result "0-1"]
[Date "2018.12.28"]
[WhiteElo "1723"]
[BlackElo "2220"]
[PlyCount "58"]
[TimeControl "900+10"]

1. d4 {[%emt 0:1:9]} Nf6 {[%emt 0:0:0]} 2. c4 {[%emt 0:0:2]} g6 {[%emt 0:0:0]} 3. Nc3 Bg7 4. e4 {[%emt 0:0:7]} d6 {[%emt 0:0:0]} 5. Nf3 {[%emt 0:0:0]} 0-0 {[%emt 0:0:0]} 6. Be2 {[%emt 0:0:9]} Nbd7 {[%emt 0:0:0]} 7. 0-0 e5 8. dxe5 {[%emt 0:0:9]} dxe5 {[%emt 0:0:0]} 9. Qc2 {[%emt 0:0:10]} c6 {[%emt 0:0:0]} 10. Be3 {[%emt 0:0:9]} Qe7 {[%emt 0:0:8]} 11. Rfd1 {[%emt 0:0:9]
} a5 {[%emt 0:0:22]} 12. a4 {[%emt 0:0:24]} Nc5 {[%emt 0:0:21]
} 13. Rd2 {[%emt 0:0:40]} h6 {[%emt 0:2:9]} 14. h3 {[%emt 0:0:22]} Nh5 {[%emt 0:0:14]
} 15. Rad1 {[%emt 0:0:49]} Nf4 {[%emt 0:0:34]} 16. Bf1 {[%emt 0:2:28]
} Re8 {[%emt 0:0:28]} 17. Rd6 {[%emt 0:1:25]} Nfe6 {[%emt 0:0:0]} 18. Qc1 {[%emt 0:0:49]} Nb3 {[%emt 0:1:4]} 19. Qc2 {[%emt 0:0:14]} Nbd4 {[%emt 0:0:20]} 20. Bxd4 {[%emt 0:1:50]} exd4 {[%emt 0:0:13]} 21. Rxe6 {[%emt 0:2:5]} Bxe6 {[%emt 0:0:18]} 22. Nxd4 {[%emt 0:0:7]} Rad8 {[%emt 0:0:0]} 23. Nxe6 {[%emt 0:0:4]} Qxe6 {[%emt 0:0:3]} 24. Rxd8 {[%emt 0:0:0]} Rxd8 {[%emt 0:0:1]} 25. f3 {[%emt 0:0:4]} Qd6 {[%emt 0:0:19]} 26. Qb3 {[%emt 0:0:20]} Qc5+ {[%emt 0:0:1]} 27. Kh1 {[%emt 0:0:18]} Qf2 {[%emt 0:0:0]} 28. Be2 {[%emt 0:0:21]} Qe1+ {[%emt 0:0:2]} 29. Kh2 {[%emt 0:0:9]} Be5+ {[%emt 0:0:1]} 0-1

[Event "FIDE World Rapid-ch Open 2018"]
[White "Alsulaymi, Abdullah M"]
[Black "Al Turky, Fahad A"]
[Site "St. Petersburg"]
[Round "14.100"]
[Annotator "NA"]
[Result "1-0"]
[Date "2018.12.28"]
[WhiteElo "1833"]
[BlackElo "1836"]
[PlyCount "73"]
[TimeControl "900+10"]

1. e4 {[%emt 0:0:20]} c5 {[%emt 0:0:0]} 2. b4 {[%emt 0:0:2]} e5 {[%emt 0:0:0]} 3. bxc5 {[%emt 0:0:10]} Bxc5 {[%emt 0:0:6]} 4. Nf3 {[%emt 0:0:5]} Nc6 {[%emt 0:0:4]} 5. Bb2 {[%emt 0:0:9]} d6 {[%emt 0:0:37]} 6. Be2 {[%emt 0:0:30]
} Bxf2+ {[%emt 0:1:54]} 7. Kxf2 {[%emt 0:0:29]} Qb6+ {[%emt 0:0:0]} 8. Ke1 {[%emt 0:0:28]} Qxb2 {[%emt 0:0:2]} 9. Nc3 {[%emt 0:0:3]} Qb6 {[%emt 0:1:31]} 10. Rb1 {[%emt 0:0:15]} Qd8 {[%emt 0:0:4]} 11. Bc4 {[%emt 0:0:16]
} Nf6 {[%emt 0:1:45]} 12. d3 {[%emt 0:1:14]} 0-0 {[%emt 0:0:0]} 13. h3 {[%emt 0:0:11]} Nh5 {[%emt 0:0:44]} 14. Nd5 {[%emt 0:0:30]} Be6 {[%emt 0:1:44]} 15. Rxb7 {[%emt 0:0:34]} Na5 {[%emt 0:1:22]} 16. Rb1 {[%emt 0:4:27]
} Nxc4 {[%emt 0:0:4]} 17. dxc4 {[%emt 0:0:2]} f5 {[%emt 0:0:0]} 18. exf5 {[%emt 0:0:41]} Bf7 {[%emt 0:3:10]} 19. h4 {[%emt 0:1:15]} Ng3 {[%emt 0:0:4]} 20. Rh3 {[%emt 0:0:15]} Nxf5 {[%emt 0:0:1]} 21. Ng5 {[%emt 0:0:32]
} h6 {[%emt 0:1:8]} 22. Nxf7 {[%emt 0:0:22]} Rxf7 {[%emt 0:0:0]} 23. Qg4 {[%emt 0:0:35]} Qa5+ {[%emt 0:0:41]} 24. c3 {[%emt 0:0:30]} Qxa2 {[%emt 0:0:17]} 25. Rd1 {[%emt 0:0:9]} Raf8 {[%emt 0:0:20]} 26. Rf3 {[%emt 0:0:11]
} Qa5 {[%emt 0:1:0]} 27. Rxf5 {[%emt 0:0:4]} Rxf5 {[%emt 0:0:0]} 28. Ne7+ {[%emt 0:0:2]} Kh7 {[%emt 0:0:11]} 29. Nxf5 {[%emt 0:0:2]
} Qxc3+ {[%emt 0:0:2]} 30. Rd2 {[%emt 0:0:8]} g6 {[%emt 0:0:38]} 31. Ne7 {[%emt 0:2:26]
} Rf6 {[%emt 0:0:15]} 32. h5 {[%emt 0:0:27]} g5 {[%emt 0:0:12]
} 33. Qe4+ {[%emt 0:0:30]} Kg7 {[%emt 0:0:6]} 34. Nf5+ {[%emt 0:0:3]} Kf8 {[%emt 0:0:24]} 35. Qa8+ {[%emt 0:0:8]} Kf7 {[%emt 0:0:2]} 36. Qb7+ {[%emt 0:0:6]
} Ke6 {[%emt 0:0:19]} 37. Ng7# {[%emt 0:0:7] Kd5} 1-0